[Event "Championnat d'Europe Rapide"]
[Date "2024.12.07"]
[White "Laurusas, Tomas"]
[Black "Mohr, Georg"]
[WhiteElo "2578"]
[BlackElo "2385"]
[Round "3.19"]
[Result "1-0"]
[TimeControl "900+10"]

1. d4 {[%clk 00:15:17]} Nf6 {[%emt 00:00:10] [%clk 00:15:11]} 2. c4 {[%emt
00:00:02] [%clk 00:15:26]} e5 {[%emt 00:00:38] [%clk 00:14:42]} 3. dxe5 {[%emt
00:00:04] [%clk 00:15:33]} Ng4 {[%clk 00:14:51]} 4. Nc3 {[%emt 00:00:15] [%clk
00:15:28]} Nxe5 {[%emt 00:00:04] [%clk 00:14:57]} 5. e3 {[%emt 00:00:01] [%clk
00:15:36]} g6 {[%emt 00:00:25] [%clk 00:14:42]} 6. Nh3 {[%emt 00:00:02] [%clk
00:15:44]} Bg7 {[%emt 00:00:01] [%clk 00:14:51]} 7. Nf4 {[%emt 00:00:01] [%clk
00:15:53]} a5 {[%emt 00:00:05] [%clk 00:14:57]} 8. Be2 {[%emt 00:00:06] [%clk
00:15:57]} d6 {[%emt 00:00:03] [%clk 00:15:03]} 9. O-O {[%emt 00:00:03] [%clk
00:16:04]} O-O {[%emt 00:00:01] [%clk 00:15:12]} 10. Qd2 {[%emt 00:00:31] [%clk
00:15:43]} a4 {[%emt 00:01:28] [%clk 00:13:54]} 11. Qc2 {[%emt 00:00:14] [%clk
00:15:40]} Bd7 {[%emt 00:00:17] [%clk 00:13:47]} 12. Bd2 {[%emt 00:00:26] [%clk
00:15:24]} Bf5 {[%emt 00:00:18] [%clk 00:13:38]} 13. e4 {[%emt 00:00:14] [%clk
00:15:20]} Bd7 {[%emt 00:00:01] [%clk 00:13:46]} 14. Rad1 {[%emt 00:00:03] [%clk
00:15:28]} Nbc6 {[%emt 00:00:48] [%clk 00:13:08]} 15. Nb5 {[%emt 00:00:02] [%clk
00:15:36]} Na7 {[%emt 00:00:49] [%clk 00:12:29]} 16. Nxa7 {[%emt 00:00:41] [%clk
00:15:05]} Rxa7 {[%clk 00:12:39]} 17. Be3 {[%emt 00:00:01] [%clk 00:15:13]} b6
{[%emt 00:00:24] [%clk 00:12:26]} 18. Nd5 {[%emt 00:00:55] [%clk 00:14:28]} Re8
{[%emt 00:00:25] [%clk 00:12:11]} 19. Qc1 {[%emt 00:00:02] [%clk 00:14:35]} Bc6
{[%emt 00:01:01] [%clk 00:11:20]} 20. Bg5 {[%emt 00:00:11] [%clk 00:14:34]} f6
{[%emt 00:00:22] [%clk 00:11:07]} 21. Bh4 {[%emt 00:00:02] [%clk 00:14:43]} Nd7
{[%emt 00:00:11] [%clk 00:11:06]} 22. f3 {[%emt 00:00:17] [%clk 00:14:36]} g5
{[%emt 00:01:56] [%clk 00:09:21]} 23. Bf2 {[%emt 00:00:49] [%clk 00:13:56]} f5
{[%emt 00:00:04] [%clk 00:09:27]} 24. Bd3 {[%emt 00:00:01] [%clk 00:14:05]} f4
{[%emt 00:00:19] [%clk 00:09:18]} 25. Nb4 {[%emt 00:00:33] [%clk 00:13:43]} Bb7
{[%emt 00:00:14] [%clk 00:09:13]} 26. Be2 {[%emt 00:00:02] [%clk 00:13:51]} Kh8
{[%emt 00:00:50] [%clk 00:08:33]} 27. Nc2 {[%emt 00:01:19] [%clk 00:12:43]} Qf6
{[%emt 00:02:20] [%clk 00:06:22]} 28. Nd4 {[%emt 00:00:04] [%clk 00:12:49]} Raa8
{[%emt 00:00:42] [%clk 00:05:50]} 29. Nb5 {[%emt 00:00:09] [%clk 00:12:50]} Rec8
{[%emt 00:00:39] [%clk 00:05:20]} 30. b4 {[%emt 00:00:38] [%clk 00:12:23]} axb3
{[%emt 00:00:09] [%clk 00:05:21]} 31. axb3 {[%emt 00:00:01] [%clk 00:12:32]} Nc5
{[%emt 00:01:01] [%clk 00:04:30]} 32. Nd4 {[%emt 00:01:47] [%clk 00:10:56]} Qf7
{[%emt 00:00:42] [%clk 00:03:57]} 33. b4 {[%emt 00:00:28] [%clk 00:10:39]} Ne6
{[%emt 00:00:02] [%clk 00:04:04]} 34. Nf5 {[%emt 00:00:12] [%clk 00:10:38]} Be5
{[%emt 00:00:37] [%clk 00:03:36]} 35. c5 {[%emt 00:01:35] [%clk 00:09:13]} bxc5
{[%emt 00:00:27] [%clk 00:03:19]} 36. bxc5 {[%emt 00:00:19] [%clk 00:09:04]} Ng7
{[%emt 00:01:17] [%clk 00:02:11]} 37. Nd4 {[%emt 00:01:11] [%clk 00:08:04]} Ne6
{[%emt 00:00:18] [%clk 00:02:03]} 38. Bc4 {[%emt 00:00:12] [%clk 00:08:02]} Nxd4
{[%emt 00:00:36] [%clk 00:01:37]} 39. Bxd4 {[%emt 00:00:21] [%clk 00:07:51]}
Bxd4+ {[%emt 00:00:18] [%clk 00:01:30]} 40. Rxd4 {[%clk 00:08:00]} Qf6 {[%emt
00:00:02] [%clk 00:01:37]} 41. Rfd1 {[%emt 00:01:39] [%clk 00:06:32]} dxc5
{[%emt 00:00:06] [%clk 00:01:41]} 42. Rd7 {[%emt 00:00:01] [%clk 00:06:41]} Bc6
{[%emt 00:00:58] [%clk 00:00:53]} 43. Rf7 {[%emt 00:00:19] [%clk 00:06:31]} Qe5
{[%emt 00:00:14] [%clk 00:00:49]} 44. Rf5 {[%emt 00:00:22] [%clk 00:06:20]} Qg7
{[%emt 00:00:01] [%clk 00:00:58]} 45. Rxc5 {[%emt 00:00:47] [%clk 00:05:43]} Ba4
{[%emt 00:00:01] [%clk 00:01:07]} 46. Re1 {[%emt 00:00:54] [%clk 00:04:58]} Rab8
{[%emt 00:00:54] [%clk 00:00:24]} 47. e5 {[%emt 00:00:33] [%clk 00:04:35]} Bb3
{[%clk 00:00:33]} 48. Ba6 {[%emt 00:01:12] [%clk 00:03:34]} Re8 {[%emt 00:00:17]
[%clk 00:00:25]} 49. Rxc7 {[%emt 00:00:20] [%clk 00:03:24]} Qg6 {[%clk
00:00:35]} 50. Bf1 {[%emt 00:00:29] [%clk 00:03:05]} Be6 {[%emt 00:00:25] [%clk
00:00:19]} 51. Qa3 {[%emt 00:01:10] [%clk 00:02:05]} Rb3 {[%emt 00:00:15] [%clk
00:00:14]} 52. Qd6 {[%emt 00:00:14] [%clk 00:02:02]} Bf5 {[%emt 00:00:11] [%clk
00:00:13]} 53. Qd4 {[%emt 00:01:30] [%clk 00:00:42]} Qb6 {[%emt 00:00:02] [%clk
00:00:21]} 54. Qxb6 {[%emt 00:00:10] [%clk 00:00:41]} Rxb6 {[%emt 00:00:01]
[%clk 00:00:30]} 55. Bc4 {[%emt 00:00:04] [%clk 00:00:46]} Be6 {[%emt 00:00:09]
[%clk 00:00:32]} 56. Bd3 {[%emt 00:00:02] [%clk 00:00:54]} Bg8 {[%emt 00:00:02]
[%clk 00:00:39]} 57. Rd7 {[%emt 00:00:30] [%clk 00:00:34]} Rbe6 {[%emt 00:00:05]
[%clk 00:00:44]} 58. Rd5 {[%emt 00:00:04] [%clk 00:00:40]} R6e7 {[%emt 00:00:02]
[%clk 00:00:52]} 59. Rc5 {[%emt 00:00:02] [%clk 00:00:48]} Kg7 {[%emt 00:00:02]
[%clk 00:01:01]} 60. g3 {[%emt 00:00:04] [%clk 00:00:54]} Rd8 {[%emt 00:00:04]
[%clk 00:01:06]} 61. Be4 {[%emt 00:00:12] [%clk 00:00:51]} Rd2 {[%emt 00:00:05]
[%clk 00:01:12]} 62. h4 {[%emt 00:00:21] [%clk 00:00:41]} h6 {[%emt 00:00:04]
[%clk 00:01:18]} 63. gxf4 {[%emt 00:00:31] [%clk 00:00:20]} gxf4 {[%emt
00:00:01] [%clk 00:01:27]} 64. Kh1 {[%emt 00:00:01] [%clk 00:00:29]} Be6 {[%emt
00:00:32] [%clk 00:01:05]} 65. Rg1+ {[%emt 00:00:02] [%clk 00:00:37]} Kf8 {[%emt
00:00:03] [%clk 00:01:11]} 66. Ra5 {[%emt 00:00:09] [%clk 00:00:39]} Bf7 {[%emt
00:00:05] [%clk 00:01:16]} 67. Ra8+ {[%emt 00:00:07] [%clk 00:00:42]} Be8 {[%emt
00:00:08] [%clk 00:01:18]} 68. Ra5 {[%emt 00:00:33] [%clk 00:00:19]} Bd7 {[%emt
00:00:02] [%clk 00:01:26]} 69. Rg6 {[%emt 00:00:06] [%clk 00:00:22]} Be8 {[%emt
00:00:07] [%clk 00:01:29]} 70. Rf6+ {[%emt 00:00:03] [%clk 00:00:29]} Kg7 {[%emt
00:00:01] [%clk 00:01:38]} 71. Rxf4 {[%emt 00:00:02] [%clk 00:00:38]} Rc7 {[%clk
00:01:47]} 72. Rg4+ {[%emt 00:00:02] [%clk 00:00:46]} Kf8 {[%emt 00:00:01] [%clk
00:01:56]} 73. Rg2 {[%emt 00:00:05] [%clk 00:00:51]} Bd7 {[%emt 00:00:03] [%clk
00:02:03]} 74. Rxd2 {[%emt 00:00:02] [%clk 00:00:59]} 1-0

[Site "Europe Echecs"]

[Event "Championnat d'Europe Rapide"]
[Date "2024.12.07"]
[White "Dobrikov, Marco"]
[Black "Bernadskiy, Vitaliy"]
[WhiteElo "2407"]
[BlackElo "2546"]
[Round "3.20"]
[Result "1-0"]
[TimeControl "900+10"]

1. e4 {[%clk 00:15:18]} e6 {[%clk 00:15:19]} 2. d4 {[%emt 00:00:03] [%clk
00:15:25]} d5 {[%emt 00:00:02] [%clk 00:15:28]} 3. Nc3 {[%emt 00:00:05] [%clk
00:15:29]} Nf6 {[%emt 00:00:06] [%clk 00:15:32]} 4. e5 {[%emt 00:00:15] [%clk
00:15:24]} Nfd7 {[%emt 00:00:01] [%clk 00:15:41]} 5. f4 {[%emt 00:00:06] [%clk
00:15:29]} c5 {[%emt 00:00:01] [%clk 00:15:49]} 6. Nf3 {[%emt 00:00:31] [%clk
00:15:08]} Nc6 {[%emt 00:00:02] [%clk 00:15:57]} 7. Be3 {[%emt 00:00:02] [%clk
00:15:15]} Rb8 {[%emt 00:00:28] [%clk 00:15:40]} 8. Qd2 {[%emt 00:01:02] [%clk
00:14:23]} Qa5 {[%emt 00:00:11] [%clk 00:15:39]} 9. Nb5 {[%emt 00:00:38] [%clk
00:13:55]} Qxd2+ {[%emt 00:00:59] [%clk 00:14:50]} 10. Kxd2 {[%emt 00:00:02]
[%clk 00:14:04]} a6 {[%emt 00:00:20] [%clk 00:14:40]} 11. Nd6+ {[%emt 00:00:14]
[%clk 00:13:59]} Bxd6 {[%emt 00:00:02] [%clk 00:14:47]} 12. exd6 {[%emt
00:00:01] [%clk 00:14:08]} c4 {[%emt 00:00:21] [%clk 00:14:37]} 13. b3 {[%emt
00:01:12] [%clk 00:13:06]} Nf6 {[%emt 00:00:49] [%clk 00:13:58]} 14. bxc4 {[%emt
00:00:12] [%clk 00:13:04]} Ne4+ {[%emt 00:00:01] [%clk 00:14:06]} 15. Kc1 {[%emt
00:00:11] [%clk 00:13:04]} dxc4 {[%emt 00:00:30] [%clk 00:13:46]} 16. Bxc4
{[%emt 00:00:47] [%clk 00:12:28]} Nxd6 {[%emt 00:00:02] [%clk 00:13:54]} 17. Be2
{[%emt 00:00:21] [%clk 00:12:16]} b5 {[%emt 00:00:21] [%clk 00:13:43]} 18. Ne5
{[%emt 00:00:19] [%clk 00:12:07]} Bb7 {[%emt 00:00:07] [%clk 00:13:46]} 19. Bf3
{[%emt 00:01:14] [%clk 00:11:03]} Nxe5 {[%emt 00:02:11] [%clk 00:11:45]} 20.
fxe5 {[%emt 00:00:37] [%clk 00:10:36]} Nc4 {[%emt 00:00:59] [%clk 00:10:56]} 21.
Bf2 {[%emt 00:00:51] [%clk 00:09:55]} Bxf3 {[%emt 00:00:31] [%clk 00:10:34]} 22.
gxf3 {[%emt 00:00:02] [%clk 00:10:04]} Kd7 {[%emt 00:00:01] [%clk 00:10:43]} 23.
Rg1 {[%emt 00:00:35] [%clk 00:09:39]} g6 {[%emt 00:00:02] [%clk 00:10:51]} 24.
Rb1 {[%emt 00:02:01] [%clk 00:07:48]} Rhc8 {[%emt 00:00:15] [%clk 00:10:47]} 25.
Rb3 {[%emt 00:01:07] [%clk 00:06:50]} Nb6 {[%emt 00:00:38] [%clk 00:10:20]} 26.
Kd2 {[%emt 00:00:13] [%clk 00:06:46]} Nd5 {[%emt 00:00:05] [%clk 00:10:24]} 27.
a3 {[%emt 00:00:41] [%clk 00:06:16]} Rc4 {[%emt 00:00:04] [%clk 00:10:30]} 28.
c3 {[%emt 00:00:10] [%clk 00:06:16]} Rbc8 {[%emt 00:00:01] [%clk 00:10:38]} 29.
Rc1 {[%emt 00:00:01] [%clk 00:06:25]} Kc6 {[%emt 00:01:26] [%clk 00:09:23]} 30.
Kd3 {[%emt 00:00:32] [%clk 00:06:03]} Kb6 {[%emt 00:00:06] [%clk 00:09:27]} 31.
Be3 {[%emt 00:00:10] [%clk 00:06:03]} Kc6 {[%emt 00:02:04] [%clk 00:07:33]} 32.
Bd2 {[%emt 00:00:01] [%clk 00:06:12]} Ne7 {[%emt 00:00:29] [%clk 00:07:14]} 33.
Ke4 {[%emt 00:00:13] [%clk 00:06:08]} Nf5 {[%emt 00:00:15] [%clk 00:07:10]} 34.
Ra1 {[%emt 00:00:18] [%clk 00:06:00]} a5 {[%emt 00:01:12] [%clk 00:06:08]} 35.
Rab1 {[%emt 00:00:11] [%clk 00:05:58]} Rb8 {[%emt 00:00:10] [%clk 00:06:09]} 36.
Be1 {[%emt 00:00:09] [%clk 00:05:59]} Ne7 {[%emt 00:00:12] [%clk 00:06:07]} 37.
Bd2 {[%emt 00:00:05] [%clk 00:06:04]} Nd5 {[%emt 00:00:01] [%clk 00:06:15]} 38.
Kd3 {[%emt 00:00:05] [%clk 00:06:09]} Nc7 {[%emt 00:00:41] [%clk 00:05:45]} 39.
Ke4 {[%emt 00:00:03] [%clk 00:06:16]} Rb6 {[%emt 00:00:10] [%clk 00:05:45]} 40.
Be1 {[%emt 00:00:22] [%clk 00:06:03]} Kb7 {[%emt 00:00:03] [%clk 00:05:53]} 41.
Bd2 {[%emt 00:00:02] [%clk 00:06:11]} Ka6 {[%emt 00:00:06] [%clk 00:05:58]} 42.
Kd3 {[%emt 00:00:04] [%clk 00:06:16]} Rbc6 {[%emt 00:00:37] [%clk 00:05:30]} 43.
R1b2 {[%emt 00:00:50] [%clk 00:05:36]} Rb6 {[%emt 00:00:45] [%clk 00:04:55]} 44.
Rb1 {[%clk 00:05:46]} Rb8 {[%emt 00:00:02] [%clk 00:05:04]} 45. Ra1 {[%emt
00:00:17] [%clk 00:05:37]} Rd8 {[%emt 00:00:12] [%clk 00:05:02]} 46. Rxb5 {[%emt
00:00:42] [%clk 00:05:06]} Rcxd4+ {[%emt 00:00:03] [%clk 00:05:10]} 47. cxd4
{[%emt 00:00:01] [%clk 00:05:15]} Nxb5 {[%emt 00:00:02] [%clk 00:05:16]} 48. Be3
{[%emt 00:00:09] [%clk 00:05:16]} Rd5 {[%emt 00:01:12] [%clk 00:04:15]} 49. a4
{[%emt 00:00:14] [%clk 00:05:12]} Na7 {[%emt 00:00:04] [%clk 00:04:20]} 50. Rc1
{[%emt 00:00:08] [%clk 00:05:15]} Kb7 {[%emt 00:00:03] [%clk 00:04:27]} 51. Rc5
{[%emt 00:00:36] [%clk 00:04:49]} Nc6 {[%emt 00:01:12] [%clk 00:03:25]} 52. Kc4
{[%emt 00:00:01] [%clk 00:04:58]} Rd8 {[%emt 00:00:59] [%clk 00:02:36]} 53. f4
{[%emt 00:00:06] [%clk 00:05:01]} Kc7 {[%emt 00:00:33] [%clk 00:02:14]} 54. h4
{[%emt 00:00:29] [%clk 00:04:42]} Rb8 {[%emt 00:00:08] [%clk 00:02:16]} 55. Rb5
{[%emt 00:00:02] [%clk 00:04:49]} Rc8 {[%emt 00:00:15] [%clk 00:02:12]} 56. Bd2
{[%emt 00:00:10] [%clk 00:04:48]} Kd7 {[%emt 00:00:19] [%clk 00:02:04]} 57. Rc5
{[%emt 00:00:15] [%clk 00:04:42]} Rb8 {[%emt 00:00:14] [%clk 00:02:02]} 58. Bxa5
{[%emt 00:00:38] [%clk 00:04:13]} Ra8 {[%emt 00:00:46] [%clk 00:01:27]} 59. Bc3
{[%emt 00:00:01] [%clk 00:04:22]} Ne7 {[%emt 00:01:02] [%clk 00:00:35]} 60. a5
{[%emt 00:00:09] [%clk 00:04:23]} Nd5 {[%emt 00:00:02] [%clk 00:00:42]} 61. Bd2
{[%emt 00:00:06] [%clk 00:04:26]} Rb8 {[%emt 00:00:04] [%clk 00:00:50]} 62. a6
{[%emt 00:01:09] [%clk 00:03:27]} Ra8 {[%emt 00:00:11] [%clk 00:00:49]} 63. Kb5
{[%emt 00:00:47] [%clk 00:02:50]} Nc7+ {[%emt 00:00:11] [%clk 00:00:47]} 64.
Rxc7+ {[%clk 00:02:59]} Kxc7 {[%emt 00:00:01] [%clk 00:00:56]} 65. Ba5+ {[%emt
00:00:01] [%clk 00:03:08]} Kd7 {[%emt 00:00:01] [%clk 00:01:05]} 66. Bb6 {[%emt
00:00:53] [%clk 00:02:25]} Rb8 {[%emt 00:00:46] [%clk 00:00:30]} 67. a7 {[%emt
00:00:19] [%clk 00:02:15]} Ra8 {[%emt 00:00:12] [%clk 00:00:28]} 68. Bc5 {[%emt
00:00:28] [%clk 00:01:57]} Kc7 {[%emt 00:00:03] [%clk 00:00:35]} 69. Ka6 {[%emt
00:00:37] [%clk 00:01:30]} Kc6 {[%emt 00:00:18] [%clk 00:00:27]} 70. Bd6 {[%emt
00:00:18] [%clk 00:01:22]} h6 {[%emt 00:00:25] [%clk 00:00:13]} 71. Bb8 {[%emt
00:00:13] [%clk 00:01:19]} Kd5 {[%emt 00:00:10] [%clk 00:00:12]} 72. Kb7 {[%emt
00:00:03] [%clk 00:01:27]} Rxa7+ {[%emt 00:00:01] [%clk 00:00:20]} 73. Bxa7
{[%emt 00:00:02] [%clk 00:01:35]} Ke4 {[%clk 00:00:29]} 74. Kc6 {[%emt 00:00:12]
[%clk 00:01:34]} Kxf4 {[%emt 00:00:01] [%clk 00:00:38]} 75. Kd7 {[%emt 00:00:09]
[%clk 00:01:35]} g5 {[%emt 00:00:06] [%clk 00:00:42]} 76. hxg5 {[%emt 00:00:02]
[%clk 00:01:43]} hxg5 {[%emt 00:00:18] [%clk 00:00:34]} 77. Bb6 {[%emt 00:01:18]
[%clk 00:00:35]} Kf5 {[%emt 00:00:28] [%clk 00:00:17]} 78. Ke7 {[%emt 00:00:06]
[%clk 00:00:38]} Kg6 {[%clk 00:00:26]} 79. Ba5 {[%emt 00:00:03] [%clk 00:00:45]}
g4 {[%emt 00:00:02] [%clk 00:00:34]} 80. Be1 {[%emt 00:00:01] [%clk 00:00:54]}
Kg7 {[%emt 00:00:10]} 81. Bg3 {[%clk 00:00:55]} Kg6 {[%emt 00:00:05] [%clk
00:00:49]} 82. Kf8 {[%emt 00:00:13] [%clk 00:00:52]} f5 {[%emt 00:00:31] [%clk
00:00:27]} 83. d5 {[%emt 00:00:01] [%clk 00:01:01]} f4 {[%emt 00:00:15] [%clk
00:00:22]} 84. Bxf4 {[%emt 00:00:19] [%clk 00:00:52]} exd5 {[%emt 00:00:23]} 85.
e6 {[%emt 00:00:03] [%clk 00:00:58]} Kf5 {[%emt 00:00:01] [%clk 00:00:20]} 86.
e7 {[%emt 00:00:02] [%clk 00:01:05]} Kxf4 {[%emt 00:00:01] [%clk 00:00:29]} 87.
e8=Q {[%emt 00:00:03] [%clk 00:01:13]} g3 {[%emt 00:00:03] [%clk 00:00:35]} 88.
Qe2 {[%emt 00:00:04] [%clk 00:01:18]} d4 {[%emt 00:00:02] [%clk 00:00:44]} 89.
Ke7 {[%emt 00:00:07] [%clk 00:01:21]} d3 {[%emt 00:00:11] [%clk 00:00:43]} 90.
Qxd3 {[%emt 00:00:09] [%clk 00:01:22]} g2 {[%emt 00:00:01] [%clk 00:00:51]} 91.
Qd4+ {[%emt 00:00:01] [%clk 00:01:31]} 1-0

[Site "Europe Echecs"]

[Event "Championnat d'Europe Rapide"]
[Date "2024.12.07"]
[White "Nikolovski, Nikola"]
[Black "Fridman, Daniel"]
[WhiteElo "2407"]
[BlackElo "2571"]
[Round "3.21"]
[Result "0-1"]
[TimeControl "900+10"]

1. e4 {[%emt 00:00:02] [%clk 00:15:18]} e6 {[%emt 00:00:05] [%clk 00:15:16]} 2.
Qe2 {[%emt 00:00:06] [%clk 00:15:21]} c5 {[%emt 00:00:04] [%clk 00:15:23]} 3. f4
{[%emt 00:00:02] [%clk 00:15:28]} Nc6 {[%emt 00:00:02] [%clk 00:15:31]} 4. Nf3
{[%emt 00:00:02] [%clk 00:15:36]} Nge7 {[%emt 00:00:13] [%clk 00:15:28]} 5. g3
{[%emt 00:00:23] [%clk 00:15:23]} d5 {[%emt 00:00:02] [%clk 00:15:36]} 6. d3
{[%emt 00:00:02] [%clk 00:15:32]} b6 {[%emt 00:00:03] [%clk 00:15:43]} 7. Bg2
{[%emt 00:00:45] [%clk 00:14:56]} dxe4 {[%emt 00:00:47] [%clk 00:15:06]} 8. dxe4
{[%emt 00:01:58] [%clk 00:13:08]} Nb4 {[%emt 00:00:02] [%clk 00:15:15]} 9. Na3
{[%emt 00:06:56] [%clk 00:06:22]} Ba6 {[%emt 00:00:04] [%clk 00:15:21]} 10. Nc4
{[%emt 00:00:31] [%clk 00:06:01]} Nec6 {[%emt 00:00:41] [%clk 00:14:49]} 11. a3
{[%emt 00:00:13] [%clk 00:05:59]} Nd4 {[%emt 00:00:01] [%clk 00:14:57]} 12. Nxd4
{[%emt 00:00:29] [%clk 00:05:41]} Qxd4 {[%emt 00:00:02] [%clk 00:15:05]} 13.
axb4 {[%emt 00:00:23] [%clk 00:05:27]} Bxc4 {[%emt 00:00:02] [%clk 00:15:13]}
14. Qe3 {[%emt 00:00:24] [%clk 00:05:14]} a6 {[%emt 00:03:05] [%clk 00:12:18]}
15. e5 {[%emt 00:01:02] [%clk 00:04:22]} O-O-O {[%emt 00:00:06] [%clk 00:12:22]}
16. Qxd4 {[%emt 00:01:21] [%clk 00:03:11]} cxd4 {[%emt 00:00:02] [%clk
00:12:30]} 17. Bd2 {[%emt 00:00:05] [%clk 00:03:16]} f6 {[%emt 00:00:31] [%clk
00:12:09]} 18. exf6 {[%emt 00:00:28] [%clk 00:02:58]} gxf6 {[%emt 00:00:01]
[%clk 00:12:17]} 19. Kf2 {[%emt 00:00:02] [%clk 00:03:06]} e5 {[%emt 00:00:02]
[%clk 00:12:26]} 20. Rhe1 {[%emt 00:01:18] [%clk 00:01:58]} Bd6 {[%emt 00:00:02]
[%clk 00:12:34]} 21. Be4 {[%emt 00:00:13] [%clk 00:01:55]} h5 {[%emt 00:00:51]
[%clk 00:11:52]} 22. Kf3 {[%emt 00:00:41] [%clk 00:01:24]} Kb8 {[%emt 00:00:24]
[%clk 00:11:38]} 23. b3 {[%emt 00:00:35] [%clk 00:01:00]} Bb5 {[%emt 00:00:02]
[%clk 00:11:45]} 24. c4 {[%emt 00:00:02] [%clk 00:01:09]} dxc3 {[%emt 00:00:02]
[%clk 00:11:53]} 25. Bxc3 {[%emt 00:00:01] [%clk 00:01:18]} Rc8 {[%emt 00:00:12]
[%clk 00:11:50]} 26. Rac1 {[%emt 00:00:44] [%clk 00:00:44]} Rxc3+ {[%emt
00:01:02] [%clk 00:10:59]} 27. Rxc3 {[%clk 00:00:53]} Bxb4 {[%emt 00:00:01]
[%clk 00:11:07]} 28. Rec1 {[%emt 00:00:12] [%clk 00:00:51]} Bxc3 {[%emt
00:00:02] [%clk 00:11:16]} 29. Rxc3 {[%clk 00:01:00]} a5 {[%emt 00:01:20] [%clk
00:10:05]} 30. fxe5 {[%emt 00:00:22] [%clk 00:00:48]} fxe5 {[%emt 00:00:03]
[%clk 00:10:13]} 31. Bd5 {[%emt 00:00:03] [%clk 00:00:55]} Rf8+ {[%emt 00:01:21]
[%clk 00:09:01]} 32. Ke4 {[%emt 00:00:31] [%clk 00:00:35]} Rf2 {[%emt 00:00:02]
[%clk 00:09:09]} 33. h4 {[%emt 00:00:17] [%clk 00:00:28]} Re2+ {[%emt 00:00:07]
[%clk 00:09:12]} 34. Re3 {[%emt 00:00:01] [%clk 00:00:36]} Rxe3+ {[%emt
00:02:41] [%clk 00:06:42]} 35. Kxe3 {[%emt 00:00:02] [%clk 00:00:44]} Bd7 {[%emt
00:00:01] [%clk 00:06:50]} 36. Ke4 {[%emt 00:00:35] [%clk 00:00:19]} Kc7 {[%emt
00:00:03] [%clk 00:06:57]} 37. Kxe5 {[%emt 00:00:01] [%clk 00:00:28]} Bg4 {[%clk
00:07:06]} 38. Kd4 {[%emt 00:00:22] [%clk 00:00:16]} Kd6 {[%emt 00:00:03] [%clk
00:07:14]} 39. Be4 {[%emt 00:00:12] [%clk 00:00:14]} Bd1 {[%emt 00:00:06] [%clk
00:07:17]} 40. Bd5 {[%emt 00:00:03] [%clk 00:00:21]} b5 {[%emt 00:00:14] [%clk
00:07:14]} 41. Bf7 {[%emt 00:00:08] [%clk 00:00:22]} Bg4 {[%emt 00:00:08] [%clk
00:07:16]} 42. Be8 {[%emt 00:00:17] [%clk 00:00:15]} b4 {[%emt 00:00:27] [%clk
00:07:00]} 43. Kc4 {[%emt 00:00:11] [%clk 00:00:14]} Be2+ {[%emt 00:00:03] [%clk
00:07:07]} 44. Kd4 {[%emt 00:00:04] [%clk 00:00:20]} Ke7 {[%emt 00:01:35] [%clk
00:05:41]} 45. Bg6 {[%emt 00:00:03] [%clk 00:00:27]} Kf6 {[%emt 00:00:04] [%clk
00:05:48]} 46. Bc2 {[%emt 00:00:16] [%clk 00:00:20]} Ke6 {[%emt 00:00:30] [%clk
00:05:28]} 47. Ke3 {[%emt 00:00:14] [%clk 00:00:16]} Bg4 {[%emt 00:00:08] [%clk
00:05:30]} 48. Kd4 {[%emt 00:00:02] [%clk 00:00:24]} Kd6 {[%emt 00:00:02] [%clk
00:05:39]} 49. Bg6 {[%emt 00:00:15] [%clk 00:00:19]} Bd1 {[%emt 00:00:16] [%clk
00:05:33]} 50. Bf7 {[%emt 00:00:13] [%clk 00:00:15]} Ke7 {[%emt 00:00:03] [%clk
00:05:41]} 51. Bg8 {[%emt 00:00:05] [%clk 00:00:19]} Kf6 {[%emt 00:00:38] [%clk
00:05:13]} 52. Ke4 {[%emt 00:00:16] [%clk 00:00:14]} Bc2+ {[%emt 00:01:05] [%clk
00:04:18]} 53. Kf4 {[%emt 00:00:03] [%clk 00:00:21]} Bf5 {[%clk 00:04:27]} 54.
Ke3 {[%emt 00:00:20] [%clk 00:00:11]} Be6 {[%emt 00:00:24] [%clk 00:04:13]} 55.
Bxe6 {[%emt 00:00:07] [%clk 00:00:13]} Kxe6 {[%emt 00:00:01] [%clk 00:04:22]}
56. Ke4 {[%emt 00:00:03] [%clk 00:00:20]} Kd6 {[%emt 00:00:18] [%clk 00:04:14]}
57. Kd4 {[%emt 00:00:01] [%clk 00:00:29]} Kc6 {[%emt 00:00:21] [%clk 00:04:04]}
58. Kc4 {[%emt 00:00:21] [%clk 00:00:19]} Kb6 {[%emt 00:00:05]} 59. Kd3 {[%emt
00:00:11] [%clk 00:00:17]} a4 {[%emt 00:00:51] [%clk 00:03:28]} 60. bxa4 {[%emt
00:00:09] [%clk 00:00:18]} Ka5 {[%emt 00:00:02] [%clk 00:03:36]} 61. Kc2 {[%emt
00:00:16] [%clk 00:00:12]} Kxa4 {[%emt 00:00:04] [%clk 00:03:42]} 62. Kb2 {[%emt
00:00:01] [%clk 00:00:21]} b3 {[%emt 00:00:02] [%clk 00:03:50]} 63. Kb1 {[%emt
00:00:07] [%clk 00:00:23]} Ka3 {[%emt 00:00:04] [%clk 00:03:57]} 64. Ka1 {[%emt
00:00:21] [%clk 00:00:12]} b2+ {[%clk 00:04:05]} 65. Kb1 {[%emt 00:00:01] [%clk
00:00:21]} Kb3 {[%clk 00:04:15]} 66. g4 {[%emt 00:00:08] [%clk 00:00:24]} hxg4
{[%clk 00:04:23]} 0-1

[Site "Europe Echecs"]